bitfinex/quotes_ETHUSD_20250814
["timestamp","ask_amount","ask_price","bid_price","bid_amount"]
[1755198118767,2.66727158,4547.2,4546.8,0.1096]
[1755198118967,0.4681,4547.2,4546.8,0.1096]
[1755198119168,0.4681,4547.1,4546.8,0.1096]
[1755198119466,0.4681,4547.1,4545.9,3.9171]
[1755198119467,2.19933818,4546.9,4546.5,0.1096]
[1755198119775,0.4681,4546.9,4546.5,0.1096]
[1755198120362,0.4681,4546.9,4545.9,0.4511]
[1755198120363,2.19935159,4546.8,4545.9,0.4511]
[1755198120561,2.86,4546.7,4546.3,0.1096]
[1755198122549,2.86,4546.7,4544.5,0.001]
[1755198122550,0.55,4546.6,4544.5,0.001]
[1755198122872,0.55,4546.6,4545.5,0.1096]
[1755198122873,2.30933096,4546.1,4545.5,0.1096]
[1755198123038,3.462,4546.0,4545.5,0.1096]
[1755198123241,5.66174007,4546.0,4545.5,0.1096]
[1755198123671,5.66174007,4546.0,4544.8,0.4888]
[1755198123672,0.4681,4545.9,4544.8,2.68910963]
[1755198123988,3.462,4546.0,4545.3,0.1104]
[1755198126598,2.86,4545.6,4545.1,0.1104]
[1755198126805,3.9301,4545.5,4545.1,0.1104]
[1755198127001,3.9301,4545.5,4545.0,0.001]
[1755198127002,2.20017161,4545.1,4545.0,0.001]
[1755198127217,2.77867161,4545.1,4545.0,0.001]
[1755198127418,3.26867161,4545.1,4545.0,0.001]
[1755198128213,2.77867161,4545.1,4545.0,0.001]
[1755198128646,3.32867161,4545.1,4545.0,0.001]
[1755198128949,10.28067161,4545.1,4545.0,0.001]
[1755198129149,6.81867161,4545.1,4545.0,0.001]
[1755198129352,10.28067161,4545.1,4545.0,0.001]
[1755198130017,13.14067161,4545.1,4545.0,0.001]
[1755198130523,13.14067161,4545.1,4545.0,1e-08]
[1755198133044,5.75041367,4544.6,4544.5,1e-08]
[1755198133344,5.75041367,4544.6,4543.6,1e-08]
[1755198133345,13.14191367,4544.6,4543.6,1e-08]
[1755198133638,0.1104,4543.7,4543.6,1e-08]
[1755198133838,9.32424952,4543.7,4543.6,1e-08]
[1755198134028,10.28234952,4543.7,4543.6,1e-08]
[1755198136419,9.32424952,4543.7,4543.6,1e-08]
[1755198136641,8.77424952,4543.7,4543.6,1e-08]
[1755198137315,9.32424952,4543.7,4543.6,1e-08]
[1755198138064,5.86124952,4543.7,4543.6,1e-08]
[1755198138211,9.32524952,4543.7,4543.6,1e-08]
[1755198138738,10.28334952,4543.7,4543.6,1e-08]
[1755198139259,13.14334952,4543.7,4543.6,1e-08]
[1755198140568,12.65334952,4543.7,4543.6,1e-08]
[1755198140742,12.65334952,4543.7,4543.3,1e-08]
[1755198140743,0.55,4543.5,4543.3,1e-08]
[1755198140912,10.3925,4543.7,4543.3,1e-08]
[1755198140913,10.28349484,4543.4,4543.3,1e-08]
[1755198142336,2.75143093,4542.5,4542.4,0.001]
[1755198142543,10.16033093,4542.5,4542.4,0.001]
[1755198142725,9.67353093,4542.5,4542.4,0.001]
[1755198143115,10.27073093,4542.5,4542.4,0.001]
[1755198143991,9.32583093,4542.5,4542.4,0.001]
[1755198144893,9.78393093,4542.5,4542.4,0.001]
[1755198145859,9.32583093,4542.5,4542.4,0.001]
[1755198147194,9.78393093,4542.5,4542.4,0.001]
[1755198147519,2.75157632,4542.2,4542.1,0.001]
[1755198147649,9.67367632,4542.2,4542.1,0.001]
[1755198147984,10.27087632,4542.2,4542.1,0.001]
[1755198148156,9.78407632,4542.2,4542.1,0.001]
[1755198148848,9.32597632,4542.2,4542.1,0.001]
[1755198149880,10.27087632,4542.2,4542.1,0.001]
[1755198150651,9.78407632,4542.2,4542.1,0.001]
[1755198151346,9.32597632,4542.2,4542.1,0.001]
[1755198152800,9.78407632,4542.2,4542.1,0.001]
[1755198153559,9.78407632,4542.2,4542.0,0.001]
[1755198153560,5.75162479,4542.1,4542.0,1e-08]
[1755198153783,6.69652479,4542.1,4542.0,1e-08]
[1755198154893,9.89127258,4542.1,4542.0,1e-08]
[1755198155103,9.42084281,4542.1,4542.0,1e-08]
[1755198155399,5.98124281,4542.1,4542.0,1e-08]
[1755198155556,5.98124281,4542.1,4542.0,0.94290001]
[1755198155757,6.32702479,4542.1,4542.0,0.94290001]
[1755198156110,9.32702479,4542.1,4542.0,0.94290001]
[1755198156406,12.18702479,4542.1,4542.0,0.94290001]
[1755198156700,11.63702479,4542.1,4542.0,0.94290001]
[1755198156868,2.9704,4542.1,4542.0,0.94290001]
[1755198157068,9.18702479,4542.1,4542.0,0.94290001]
[1755198157401,9.9854,4542.1,4542.0,0.94290001]
[1755198157590,12.18702479,4542.1,4542.0,0.94290001]
[1755198157905,12.18702479,4542.1,4542.0,1e-08]
[1755198158061,0.55,4541.9,4541.1,0.001]
[1755198158263,0.6604,4541.2,4541.1,0.001]
[1755198158469,6.32746112,4541.2,4541.1,0.001]
[1755198158794,6.32746112,4541.2,4541.1,0.9439]
[1755198159681,6.32746112,4541.2,4541.1,0.001]
[1755198160066,4.1254,4541.2,4541.1,0.9439]
[1755198160679,6.32746112,4541.2,4541.1,0.9439]
[1755198161115,4.1254,4541.2,4541.1,0.9439]
[1755198161407,6.32746112,4541.2,4541.1,0.9439]
[1755198161706,4.1254,4541.2,4541.1,0.9439]
[1755198162083,9.18746112,4541.2,4541.1,0.9439]
[1755198162605,9.18746112,4541.2,4541.1,0.001]
[1755198162606,12.18746112,4541.2,4541.1,0.001]
[1755198162902,12.39287595,4541.2,4541.1,0.001]
[1755198163123,12.86616773,4541.2,4541.1,0.001]
[1755198163266,12.86516773,4541.2,4541.1,0.001]
[1755198164307,12.86526776,4541.2,4541.1,0.001]
[1755198165006,9.40126776,4541.2,4541.1,0.001]
[1755198165207,12.86526776,4541.2,4541.1,0.9439]
[1755198166178,12.86526776,4541.2,4541.1,0.001]
[1755198167630,2.75254614,4540.2,4540.1,0.001]
[1755198167907,5.75254614,4540.2,4540.1,0.001]
[1755198168108,12.07654614,4540.2,4540.1,0.9439]
[1755198168482,12.75623443,4540.2,4540.1,0.9439]
[1755198169412,12.75623443,4540.2,4540.1,0.4568]
[1755198169730,12.75623443,4540.2,4540.1,0.9439]
[1755198169893,12.75623443,4540.2,4540.1,0.001]
[1755198170406,12.75626736,4540.2,4540.1,0.001]
[1755198170922,13.21436736,4540.2,4540.1,0.001]
[1755198171074,5.75259465,4540.1,4540.0,10.04767389]
[1755198171274,5.75259465,4540.1,4540.0,6.16105]
[1755198171275,7.02494455,4540.1,4540.0,6.16105]
[1755198171476,7.48304455,4540.1,4540.0,6.16105]
[1755198171675,6.89041587,4540.1,4540.0,6.16105]
[1755198172705,6.43231587,4540.1,4540.0,6.16105]
[1755198172880,9.89631587,4540.1,4540.0,6.16105]
[1755198173213,10.48797649,4540.1,4540.0,6.16105]
[1755198173781,2.7527402,4539.8,4539.7,0.001]
[1755198174116,6.42332963,4539.8,4539.7,0.001]
[1755198174318,0.55,4539.5,4539.1,0.001]
[1755198174593,0.55,4539.2,4539.1,0.001]
[1755198174772,7.22058943,4539.2,4539.1,0.001]
[1755198175102,9.4236208,4539.2,4539.1,0.001]
[1755198175308,9.21803137,4539.2,4539.1,0.001]
[1755198176240,5.95840401,4539.2,4539.1,0.001]
[1755198176440,9.89636819,4539.2,4539.1,0.001]
[1755198176981,10.36386819,4539.2,4539.1,0.001]
[1755198177276,5.7530799,4539.1,4539.0,0.001]
[1755198177421,6.89891672,4539.1,4539.0,0.001]
[1755198177756,10.00681672,4539.1,4539.0,0.001]
[1755198177964,1.33862761,4539.1,4539.0,0.9347]
[1755198178114,4.1254,4539.1,4539.0,0.9347]
[1755198178438,9.3284799,4539.1,4539.0,0.9347]
[1755198179840,9.3284799,4539.1,4539.0,0.001]
[1755198180338,9.3284799,4539.1,4539.0,0.9347]
[1755198180501,5.284,4540.3,4539.0,0.9347]
[1755198180710,3.465,4540.2,4539.1,0.95573079]
[1755198180938,3.465,4540.1,4539.2,3.45270098]
[1755198181166,3.465,4540.1,4540.0,2.20264317]
[1755198181369,3.465,4540.1,4540.0,3.13634317]
[1755198181567,3.465,4540.1,4540.0,0.9337]
[1755198186639,3.465,4540.1,4539.4,0.9337]
[1755198186872,5.66759932,4540.1,4539.4,0.9337]
[1755198187277,5.66759932,4540.1,4539.2,0.31598501]
[1755198187278,3.465,4540.1,4539.5,2.20287266]
[1755198187460,3.465,4540.1,4539.6,0.9337]
[1755198187852,3.464,4540.2,4539.8,2.20269749]
[1755198188058,3.464,4540.2,4539.9,0.9337]
[1755198188370,3.464,4540.2,4540.0,0.9337]
[1755198188574,3.464,4540.2,4539.5,0.47218808]
[1755198188779,3.464,4540.2,4540.1,0.9337]
[1755198189796,0.55,4541.0,4540.1,0.9337]
[1755198190100,3.464,4540.9,4540.2,0.9337]
[1755198190477,5.66621107,4540.9,4540.2,0.9337]
[1755198190665,0.1104,4540.6,4540.2,0.9337]
[1755198190863,0.1104,4540.6,4540.0,0.1104]
[1755198190864,3.464,4540.5,4540.3,0.4621]
[1755198191168,3.464,4540.5,4540.4,0.9337]
[1755198191788,3.464,4540.5,4540.0,0.1104]
[1755198192110,3.464,4540.5,4540.4,0.9337]
[1755198192861,0.55,4541.8,4540.4,0.9337]
[1755198192862,3.0,4541.8,4540.5,2.20240061]
[1755198193196,0.1104,4541.4,4540.6,0.9337]
[1755198193489,5.66501706,4541.3,4540.7,0.1104]
[1755198193994,3.463,4541.3,4540.7,0.1104]
[1755198194367,0.1104,4541.1,4540.5,0.1104]
[1755198195454,0.1124,4541.1,4540.5,0.1104]
[1755198196294,3.462,4541.0,4540.5,0.1104]
[1755198196499,3.462,4541.0,4540.5,1.0441]
[1755198197011,3.462,4541.0,4540.6,0.9337]
[1755198198098,3.462,4541.0,4540.5,0.1104]
[1755198198418,5.66416964,4541.0,4540.5,0.1104]
[1755198198577,3.9295,4541.0,4539.9,0.4621]
[1755198198773,2.20220661,4540.9,4540.2,0.1104]
[1755198199183,5.66416499,4541.0,4540.2,0.1104]
[1755198199409,5.66416499,4541.0,4540.2,1.0441]
[1755198199810,3.462,4541.0,4540.2,1.0441]
[1755198200119,5.66416575,4541.0,4540.2,1.0441]
[1755198200414,0.1124,4541.1,4540.3,0.4621]
[1755198200616,3.462,4541.0,4540.7,0.1104]
[1755198200778,3.462,4541.0,4540.6,2.2023085]
[1755198200779,0.002,4541.1,4541.0,2.20215811]
[1755198200981,3.464,4541.1,4541.0,3.13585811]
[1755198201337,0.002,4541.1,4541.0,3.13585811]
[1755198201633,0.002,4541.1,4541.0,3.79110809]
[1755198202820,0.002,4541.1,4541.0,3.24625811]
[1755198206833,0.002,4541.1,4541.0,0.1104]
[1755198207006,0.002,4541.1,4541.0,2.31255811]
[1755198207343,0.002,4541.1,4541.0,3.22565811]
[1755198210033,0.002,4541.1,4541.0,2.31255811]
[1755198210234,0.002,4541.1,4541.0,0.1104]
[1755198210409,0.4426,4541.1,4541.0,0.1104]
[1755198210793,0.002,4541.1,4541.0,2.20215811]
[1755198211004,0.002,4541.1,4541.0,6.34517392]
[1755198211203,0.002,4541.1,4541.0,6.79547392]
[1755198213251,0.002,4541.1,4541.0,6.88358592]
[1755198221045,0.002,4541.1,4541.0,6.99398592]
[1755198224168,0.002,4541.1,4541.0,6.08088592]
[1755198224874,0.002,4541.1,4541.0,6.99398592]
[1755198226587,0.002,4541.1,4541.0,2.62088592]
[1755198226785,0.002,4541.1,4541.0,5.85867011]
[1755198228787,0.002,4541.1,4540.0,2.20262238]
[1755198228788,0.8932,4541.1,4539.2,0.9131]
[1755198228974,0.8912,4541.0,4540.2,2.20250863]
[1755198229283,0.8912,4541.0,4540.4,0.1104]
[1755198229284,0.8912,4540.9,4540.4,0.1104]
[1755198229716,0.4406,4540.8,4540.4,0.1104]
[1755198229996,0.8912,4540.7,4540.4,2.31284102]
[1755198230204,0.4406,4540.7,4540.4,2.31284102]
[1755198230357,0.4406,4540.7,4540.4,0.1104]
[1755198230687,0.4406,4540.6,4540.4,0.1104]
[1755198231589,0.4483,4540.8,4540.4,0.1104]
[1755198231890,0.1104,4541.0,4540.4,0.1104]
[1755198232089,0.4483,4540.7,4540.4,0.1104]
[1755198232264,0.9234,4540.6,4539.1,0.001]
[1755198232596,0.1104,4540.4,4539.8,0.1104]
[1755198232804,0.4483,4540.3,4539.8,0.1104]
[1755198233001,0.1104,4540.4,4539.8,0.1104]
[1755198233159,0.9234,4540.2,4539.8,0.1104]
[1755198233360,0.4483,4540.1,4539.8,0.1104]
[1755198233977,0.1104,4540.4,4539.8,0.1104]
[1755198233978,3.7834,4540.0,4539.8,0.1104]
[1755198234179,0.9234,4539.9,4539.8,0.1104]
[1755198234604,3.7834,4539.9,4539.4,0.1104]
[1755198234802,3.3351,4539.9,4539.4,2.31333127]
[1755198235115,2.86,4539.9,4539.5,2.20287615]
[1755198235316,2.86,4539.9,4539.7,2.20274909]
[1755198235475,2.86,4539.9,4539.5,2.20284471]
[1755198235669,2.86,4539.9,4539.6,2.20282222]
[1755198236409,2.86,4539.9,4539.6,2.20282422]
[1755198236571,2.86,4539.9,4539.7,0.1104]
[1755198237608,0.4751,4539.8,4539.7,0.1104]
[1755198237816,0.9234,4539.8,4539.7,0.1104]
[1755198238674,0.4483,4539.8,4539.7,0.1104]
[1755198239106,3.3083,4539.8,4539.7,0.1104]
[1755198239590,3.3083,4539.8,4539.4,0.1104]
[1755198239902,0.9234,4539.7,4539.4,0.1104]
[1755198240101,2.86,4539.6,4539.4,0.1104]
[1755198240512,2.86,4539.6,4539.5,2.20288578]
[1755198240714,0.1104,4540.2,4539.6,2.20283725]
[1755198241014,3.459,4541.1,4540.1,0.1104]
[1755198241215,3.459,4541.1,4540.7,0.1104]
[1755198241427,0.002,4541.1,4541.0,2.20215811]
[1755198241583,0.002,4541.1,4541.0,2.31255811]
[1755198241774,0.002,4541.1,4541.0,3.70523943]
[1755198242178,0.002,4541.1,4541.0,2.76403943]
[1755198242419,0.002,4541.1,4541.0,2.31255811]
[1755198242625,0.002,4541.1,4541.0,0.1104]
[1755198243805,0.002,4541.1,4539.7,0.9412]
[1755198243806,0.9254,4541.1,4539.7,0.9412]
[1755198243984,0.9254,4541.1,4540.6,0.1104]
[1755198244183,0.9234,4541.0,4540.6,0.1104]
[1755198244419,0.002,4541.1,4540.6,0.1104]
[1755198244806,0.002,4541.1,4540.7,0.48992303]
[1755198245006,0.002,4541.1,4541.0,2.31255811]
[1755198245327,0.002,4541.1,4541.0,2.78045811]
[1755198246330,0.002,4541.1,4541.0,2.31255811]
[1755198252240,0.002,4541.1,4541.0,3.25375811]
[1755198252525,0.002,4541.1,4541.0,1.0516]
[1755198252692,0.002,4541.1,4541.0,0.1104]
[1755198257148,0.002,4541.1,4540.6,0.1104]
[1755198257149,4.3794,4541.1,4540.6,0.1104]
[1755198257345,3.456,4541.1,4540.6,0.1104]
[1755198257556,0.9234,4541.0,4540.6,0.1104]
[1755198257957,0.4751,4541.0,4540.6,0.1104]
[1755198258259,0.9234,4540.9,4540.6,0.1104]
[1755198258561,0.4483,4540.8,4540.6,0.1104]
[1755198258930,3.456,4541.1,4540.6,0.1104]
[1755198259762,3.9043,4541.1,4540.6,0.1104]
[1755198260151,3.456,4541.1,4540.6,0.1104]
[1755198260329,0.4483,4541.0,4540.6,0.1104]
[1755198262065,0.453,4540.9,4540.6,0.1104]
[1755198263027,3.456,4541.1,4540.6,0.1104]
[1755198263225,3.909,4541.1,4540.6,0.1104]
[1755198263460,3.456,4541.1,4540.6,0.1104]
[1755198264339,3.453,4541.0,4540.6,0.1104]
[1755198264659,3.453,4541.0,4540.7,0.9536]
[1755198265163,3.455,4541.1,4540.8,3.1558438]
[1755198265360,3.455,4541.1,4540.6,0.1104]
[1755198266263,3.455,4541.1,4540.6,1.064]
[1755198266967,3.455,4541.1,4540.7,2.20230152]
[1755198267132,3.455,4541.1,4540.7,0.9536]
[1755198267533,3.455,4541.1,4540.7,3.15589023]
[1755198267870,3.455,4541.1,4540.8,0.9536]
[1755198268072,0.002,4541.1,4541.0,2.20215811]
[1755198268227,0.002,4541.1,4541.0,3.26615811]
[1755198270538,0.002,4541.1,4541.0,1.064]
[1755198271248,0.002,4541.1,4541.0,0.1104]
[1755198273565,0.002,4541.1,4541.0,2.31255811]
[1755198273983,0.002,4541.1,4541.0,2.78425811]
[1755198274275,0.002,4541.1,4541.0,3.26615811]
[1755198274575,0.002,4541.1,4541.0,0.1104]
[1755198274960,0.002,4541.1,4541.0,2.31255811]
[1755198275160,0.002,4541.1,4541.0,3.26615811]
[1755198276215,0.002,4541.1,4541.0,3.87407617]
[1755198285159,0.002,4541.6,4541.5,2.20191566]
[1755198285390,0.002,4541.6,4541.5,14.5333367]
[1755198285594,0.002,4541.6,4541.5,14.6437367]
[1755198285801,0.002,4541.6,4541.5,16.3283086]
[1755198289296,0.002,4541.6,4541.5,17.2819086]
[1755198291515,0.4333,4541.6,4541.5,1.7949719]
[1755198291806,0.9147,4541.6,4541.5,0.1104]
[1755198294099,0.4333,4541.6,4541.5,0.1104]
[1755198295303,0.002,4541.6,4541.5,0.1104]
[1755198295707,0.4333,4541.6,4541.5,0.1104]
[1755198297545,0.002,4541.6,4541.5,0.1104]
[1755198297839,2.862,4541.6,4541.5,2.31231566]
[1755198298039,2.862,4541.6,4541.5,0.1104]
[1755198298243,2.862,4541.6,4541.5,2.31231566]
[1755198300220,0.002,4541.6,4541.5,3.71744831]
[1755198300409,0.002,4541.6,4541.5,3.73946746]
[1755198300606,0.002,4541.6,4541.5,3.71744831]
[1755198300850,0.002,4542.1,4542.0,2.20167327]
[1755198301031,1e-08,4542.2,4542.1,2.20162479]
[1755198301238,1e-08,4542.2,4542.1,7.2811067]
[1755198301449,1e-08,4542.2,4542.1,8.2348067]
[1755198302130,1e-08,4542.2,4542.1,8.3228837]
[1755198304958,1e-08,4542.2,4542.1,4.3691837]
[1755198305525,1e-08,4542.2,4542.1,5.3228837]
[1755198307123,1e-08,4542.2,4542.1,4.3691837]
[1755198307323,1e-08,4542.2,4542.1,2.31202479]
[1755198307559,1e-08,4542.2,4542.1,3.28774103]
[1755198308065,0.002,4543.2,4542.5,2.20143093]
[1755198308220,0.002,4543.2,4542.5,15.59095197]
[1755198309145,0.002,4543.2,4543.1,11.08356123]
[1755198309350,0.002,4543.2,4543.1,14.63696123]
[1755198309934,0.002,4543.6,4543.1,13.38952104]
[1755198310146,1e-08,4543.4,4543.3,5.20104329]
[1755198310356,1e-08,4543.6,4543.5,2.2009464]
[1755198310661,1e-08,4543.6,4543.5,7.35496454]
[1755198310840,1e-08,4543.6,4543.5,5.6439464]
[1755198315345,1e-08,4543.6,4543.5,6.5976464]
[1755198315544,1e-08,4543.6,4543.5,5.6439464]
[1755198316033,0.43130001,4543.6,4543.4,2.20094811]
[1755198316259,0.4313,4543.5,4543.4,2.20094811]
[1755198317071,1e-08,4543.6,4543.5,2.2009464]
[1755198317568,0.43130001,4543.6,4543.3,0.1104]
[1755198317762,1e-08,4543.6,4543.4,2.20099484]
[1755198319381,1e-08,4543.6,4543.5,2.2009464]
[1755198321077,1e-08,4543.6,4543.3,2.31140349]
[1755198321277,1e-08,4543.6,4543.4,2.20099357]
[1755198321782,1e-08,4543.6,4543.5,2.2009464]
[1755198324105,1e-08,4543.6,4543.5,6.22260847]
[1755198324308,1e-08,4543.6,4543.5,7.14650847]
[1755198324719,0.0408,4543.7,4543.6,2.20089796]
[1755198325027,0.0408,4543.7,4543.6,12.02922797]
[1755198325200,0.0408,4543.7,4543.6,12.117619]
[1755198325397,0.0408,4543.7,4543.6,14.18055055]
[1755198328210,0.002,4544.6,4544.4,2.20051051]
[1755198328409,0.002,4544.6,4544.4,14.97743155]
[1755198328615,0.002,4544.6,4544.4,15.55623155]
[1755198328810,0.002,4544.6,4544.4,17.11185471]
[1755198329536,0.002,4544.6,4544.4,7.30553367]
[1755198329701,0.002,4544.6,4544.4,8.22943367]
[1755198330601,0.002,4544.6,4544.4,7.30553367]
[1755198332508,0.002,4544.6,4544.4,8.22943367]
[1755198332904,0.002,4545.9,4544.5,2.20046209]
[1755198333105,0.002,4545.9,4544.9,11.08268947]
[1755198333353,0.4487,4545.6,4544.9,0.1104]
[1755198333567,0.002,4545.9,4544.9,0.1104]
[1755198333568,1.4689,4545.0,4544.9,0.1104]
[1755198333706,0.55,4544.9,4543.3,0.001]
[1755198333902,0.1104,4544.5,4543.8,0.1104]
[1755198334106,0.55,4544.3,4543.8,0.1104]
[1755198334315,0.4682,4544.2,4543.8,0.1104]
[1755198334549,0.4682,4544.1,4543.8,0.1104]
[1755198334846,0.9169,4544.0,4543.8,0.1104]
[1755198335067,2.7505683,4544.3,4543.8,0.1104]
[1755198335211,0.9169,4543.9,4543.8,0.1104]
[1755198337853,1.4669,4543.9,4543.8,0.1104]
[1755198338059,1.4669,4543.9,4543.3,0.001]
[1755198338060,0.55,4543.8,4543.3,0.001]
[1755198338210,3.55,4543.8,4543.3,0.001]
[1755198338411,0.55,4543.6,4543.3,0.001]
[1755198339049,0.55,4543.4,4543.3,0.001]
[1755198339350,1.4669,4543.4,4543.3,0.001]
[1755198340023,4.4669,4543.4,4543.3,0.001]
[1755198340355,3.55,4543.4,4543.3,0.001]
[1755198340530,4.4669,4543.4,4543.3,0.001]
[1755198341021,3.9987,4543.4,4543.3,0.001]
[1755198341222,3.55,4543.4,4543.3,0.001]
[1755198341947,0.55,4543.4,4543.3,0.001]
[1755198342116,0.55,4543.4,4542.9,0.0624]
[1755198342518,0.55,4543.4,4542.9,2.2636334]
[1755198342716,0.4487,4543.7,4543.0,2.20116963]
[1755198342951,3.436,4544.1,4543.6,0.1104]
[1755198343152,0.55,4544.1,4543.7,2.20084836]
[1755198343321,0.55,4544.1,4543.7,2.20080897]
[1755198343522,0.55,4544.1,4543.6,0.1104]
[1755198344636,0.4487,4544.0,4543.6,0.1104]
[1755198344859,1.0182,4544.1,4543.6,0.1104]
[1755198345159,1.0182,4544.1,4542.3,5.63748157]
[1755198345160,0.55,4543.8,4542.6,3.436]
[1755198345357,0.55,4543.6,4543.2,0.1104]
[1755198345857,0.55,4543.4,4543.2,0.1104]
[1755198346222,0.9987,4543.4,4543.2,0.1104]
[1755198346427,0.9987,4543.7,4543.2,0.1104]
[1755198346849,0.55,4543.7,4543.2,2.31147813]
[1755198347249,0.55,4543.8,4543.4,2.20095922]
[1755198347556,0.55,4543.8,4542.8,0.001]
[1755198347557,3.436,4544.2,4543.6,0.1104]
[1755198347767,3.436,4544.2,4543.7,2.20080972]
[1755198347927,3.436,4544.2,4543.6,2.311287]
[1755198348277,0.55,4544.1,4543.6,2.311287]
[1755198348427,0.55,4544.1,4543.6,0.1104]
[1755198348865,0.4487,4544.0,4543.6,0.1104]
[1755198350026,0.4487,4543.9,4542.8,0.001]
[1755198350227,0.55,4543.8,4542.8,0.001]
[1755198350545,0.55,4543.5,4542.8,0.001]
[1755198350870,3.8837,4543.4,4543.2,0.1104]
[1755198351031,3.435,4543.4,4543.2,0.1104]
[1755198351232,0.4487,4543.3,4543.2,0.1104]
[1755198351440,0.9987,4543.3,4543.2,0.1104]
[1755198351642,0.9987,4543.3,4542.8,0.001]
[1755198351643,0.55,4543.2,4542.8,0.001]
[1755198351928,0.9932,4543.2,4543.0,0.1104]
[1755198352233,3.985,4543.3,4543.0,0.1104]
[1755198352874,4.4282,4543.3,4543.0,0.1104]
[1755198353160,3.985,4543.3,4543.0,0.1104]
[1755198355134,0.8943,4543.2,4543.0,0.1104]
[1755198355534,0.55,4543.2,4542.8,0.001]
[1755198355735,0.4432,4543.1,4542.8,0.1114]
[1755198356669,0.55,4543.2,4542.8,0.1114]
[1755198357063,3.435,4543.1,4542.8,1.0384]
[1755198357369,3.435,4543.1,4542.8,0.1114]
[1755198358270,3.435,4543.1,4542.8,1.0384]
[1755198358481,3.435,4543.1,4542.8,0.1114]
[1755198358777,3.435,4543.0,4542.8,0.1114]
[1755198359766,0.55,4542.9,4542.8,0.1114]
[1755198360033,4.4443,4542.9,4542.8,0.001]
[1755198360335,0.1104,4543.2,4542.8,0.001]
[1755198360568,0.002,4545.0,4543.1,0.1104]
[1755198360779,0.002,4545.0,4544.5,2.20046209]
[1755198361073,0.002,4545.0,4544.5,3.12746209]
[1755198364728,0.002,4545.0,4544.1,0.927]
[1755198365022,0.002,4545.0,4544.2,3.12760736]
[1755198365253,0.002,4545.0,4544.2,0.927]
[1755198365754,0.552,4545.0,4544.2,2.20056992]
[1755198365965,3.433,4544.8,4544.2,2.52837804]
[1755198366254,3.433,4544.8,4544.2,0.32780812]
[1755198366410,3.433,4544.8,4544.3,2.20051375]
[1755198367736,3.433,4544.8,4544.2,2.52841199]
[1755198367943,3.433,4544.8,4544.2,0.32780812]
[1755198368139,0.55,4544.7,4543.8,2.20075958]
[1755198368345,0.55,4544.7,4543.4,2.20099484]
[1755198368346,0.55,4544.5,4543.4,2.20099484]
[1755198368524,0.55,4544.5,4544.0,2.2006677]
[1755198368849,0.002,4544.6,4544.0,2.2006677]
[1755198369114,3.432,4544.5,4544.0,2.2006677]
[1755198369510,0.002,4544.6,4544.0,2.2006677]
[1755198369939,0.55,4544.5,4544.0,2.2006677]
[1755198370307,0.002,4544.6,4543.7,0.4662]
[1755198370613,0.002,4544.6,4544.4,2.20050082]
[1755198370814,0.002,4544.6,4544.5,0.927]
[1755198371015,0.002,4544.6,4544.5,1.0374]
[1755198371858,0.002,4544.6,4544.5,0.1104]
[1755198373449,0.002,4544.6,4544.5,2.77166209]
[1755198373647,0.002,4544.6,4544.5,3.23786209]
[1755198373846,0.002,4544.6,4544.5,1.0374]
[1755198374214,0.002,4544.6,4544.5,3.23786209]
[1755198374753,0.002,4544.6,4544.5,1.0374]
[1755198374949,0.002,4544.6,4544.5,3.23786209]
[1755198375931,0.002,4544.6,4544.5,3.67130305]
[1755198376130,0.002,4544.6,4544.5,3.78170305]
[1755198384741,0.002,4544.6,4544.5,2.85470305]
[1755198385082,0.002,4544.6,4544.5,2.31086209]
[1755198385864,0.002,4544.6,4544.5,0.1104]
[1755198386280,0.457,4544.6,4544.5,0.1104]
[1755198386477,0.9088,4544.6,4544.5,0.1104]
[1755198386661,0.457,4544.6,4544.5,0.1104]
[1755198387186,0.002,4544.6,4544.5,0.1104]
[1755198387771,0.002,4544.6,4544.5,2.31086209]
[1755198388273,0.002,4544.6,4544.5,0.1104]
[1755198388875,0.002,4544.6,4544.5,2.31086209]
[1755198389114,0.002,4544.6,4544.5,2.75236209]
[1755198389423,0.002,4544.6,4544.5,3.33758594]
[1755198389571,0.002,4544.6,4544.5,2.89608594]
[1755198390408,0.002,4544.6,4544.5,3.33758594]
[1755198391405,0.002,4544.6,4544.5,3.79708594]
[1755198393940,0.002,4544.6,4544.5,2.89608594]
[1755198394078,0.002,4544.6,4544.5,3.88511694]
[1755198395778,0.002,4544.6,4544.5,2.89608594]
[1755198396015,0.002,4544.6,4544.5,6.32308594]
[1755198396325,0.002,4544.6,4544.5,2.89608594]
[1755198396520,0.002,4544.6,4544.5,0.69562385]
[1755198396693,0.002,4544.6,4544.5,0.1104]
[1755198396694,0.9088,4544.6,4544.5,0.1104]
[1755198397300,0.457,4544.6,4544.5,0.1104]
[1755198397517,0.9088,4544.6,4544.5,0.1104]
[1755198397678,0.457,4544.6,4544.5,0.1104]
[1755198398690,0.9088,4544.6,4544.5,0.1104]
[1755198399522,0.002,4544.6,4544.5,0.1104]
[1755198401338,0.002,4544.6,4544.5,2.31086209]
[1755198401897,0.002,4544.6,4544.5,3.21186209]
[1755198402103,0.002,4544.6,4544.5,2.31086209]
[1755198402711,0.002,4544.6,4544.5,0.1104]
[1755198403099,0.4176,4544.6,4544.5,0.1104]
[1755198403418,0.002,4544.6,4544.5,0.1104]